Cogmind - Beta 11.1 *** ADVENTURER MODE // 2022.07.22 @ 14:59:50 Player: Olexender Result: Destroyed by Y-45 Defender with Beam Rifle Performance ------------- Evolutions (1) 500 Regions Visited (2) 400 Robots Destroyed (55) 275 Value Destroyed (1148) 1148 Prototype IDs (3) 60 Alien Tech Used (0) 0 Bonus (103) 103 TOTAL SCORE: 2486 Bonus ------- High Alert Combat Kills 103 Cogmind --------- Core Integrity 0/400 Matter 229/300 Energy 100/100 System Corruption 3% Temperature Cool (9) Movement Walking (120) Location -9/Materials Parts ------- > --- POWER (1) -------- (None) > --- PROPULSION (2) --- Improved Aluminum Leg Improved Aluminum Leg > --- UTILITY (4) ------ Heat Sink Signal Interpreter ECM Suite > --- WEAPON (2) ------- Light Assault Rifle > --- INVENTORY (5) ---- Cooled Ion Engine Aluminum Leg Compact Wheel Peak State ------------ > --- POWER ------------ Light Ion Engine > --- PROPULSION ------- Hover Unit Hover Unit > --- UTILITY ---------- Improved Heat Sink Seismic Detector ECM Suite Hardened Light Armor Plating > --- WEAPON ----------- Beam Rifle Light EM Pulse Cannon > --- INVENTORY -------- Light Ion Engine Compact Wheel Hover Unit Grenade Launcher Grenade Launcher [Rating: 14] Favorites ----------- Power Ion Engine Engine Ion Engine Propulsion Hover Unit Leg Aluminum Leg Wheel Compact Wheel Hover Unit Hover Unit Utility Seismic Detector Device Seismic Detector Storage Small Storage Unit Processor Signal Interpreter Protection Hardened Light Armor Plating Weapon Light Assault Rifle Energy Gun Small Laser Energy Cannon Beam Cannon Ballistic Gun Light Assault Rifle Launcher Grenade Launcher Build | -11 -10 -9 ------- Run | Scr Mat Mat Slots Evolved 2 | . . 2 Power . | . . . Propulsion . | . . . Utility 2 | . . 2 Weapon . | . . . Parts Attached 58 | 7 15 36 Power 12 | 1 3 8 Engine 12 | 1 3 8 Core . | . . . Reactor . | . . . Propulsion 18 | 2 7 9 Treads . | . . . Leg 8 | 2 1 5 Wheel 1 | . . 1 Hover 9 | . 6 3 Flight . | . . . Utility 12 | 2 1 9 Device 9 | 1 1 7 Storage 1 | 1 . . Processor 1 | . . 1 Hackware . | . . . Protection 1 | . . 1 Artifact . | . . . Weapon 16 | 2 4 10 Energy Gun 6 | 2 1 3 Energy Cannon 2 | . 1 1 Ballistic Gun 5 | . . 5 Ballistic Cannon . | . . . Launcher 3 | . 2 1 Special Weapon . | . . . Impact Weapon . | . . . Slashing Weapon . | . . . Piercing Weapon . | . . . Special Melee Weapon . | . . . Unidentified Prototypes 1 | . . 1 Parts Lost 19 | . 3 16 Power 4 | . 1 3 Propulsion 5 | . 1 4 Utility 5 | . . 5 Weapon 5 | . 1 4 Highest Loss Streak 6 | . 2 6 To Critical Strikes 1 | . . 1 Average Slot Usage (%) 80 | . 99 70 Engine 10 | . 13 8 Leg 11 | . 12 10 Wheel 1 | . . 1 Hover 10 | . 15 7 Device 18 | . 21 16 Storage 2 | . 6 . Processor 2 | . . 3 Energy Gun 9 | . 16 6 Energy Cannon 2 | . 4 1 Ballistic Gun 7 | . . 11 Launcher 3 | . 6 2 Naked Turns . | . . . Heaviest Build 18 | 13 14 18 Greatest Support 26 | 20 20 26 Greatest Overweight (x) 2 | . 1 2 Average Overweight (x) . | . . . Largest Inventory Capacity 8 | 8 8 5 Average Capacity 5 | 6 6 5 Most Carried 8 | 7 8 5 Average Carried 4 | 4 5 4 Final Capacity 8 | 8 5 5 Final Carried 7 | 7 5 3 Class Distribution -------------------- 55% | Scavenger-Mutant 44% | Mutant Dominant Class ---------------- Scavenger-Mutant | -10/Materials Scavenger-Mutant | -9/Materials Resources | -11 -10 -9 ----------- Run | Scr Mat Mat Matter Collected 969 | 270 137 562 Remotely 60 | . . 60 Salvage Created 1755 | 103 568 1084 Parts 137 | 10 47 80 Haulers Intercepted 4 | . 2 2 Recyclers Shooed 4 | . . 4 Parts Field Recycled . | . . . Retrieved Matter . | . . . Parts Self-Destructed . | . . . Prevented . | . . . Kills | -11 -10 -9 ------- Run | Scr Mat Mat Combat Hostiles Destroyed 31 | . 10 21 Guns 22 | . 5 17 Cannons 5 | . 4 1 AOE 3 | . 1 2 Classes Destroyed 9 | 2 5 2 Worker 3 | . 2 1 Builder 4 | . 3 1 Tunneler 3 | 2 1 . Hauler 4 | . 2 2 Recycler 5 | 1 . 4 Watcher 5 | . 3 2 Swarmer 10 | . . 10 Grunt 18 | . 10 8 Sentry 3 | . . 3 Best Kill Streak 7 | 3 7 7 Combat Bots Only 4 | . 2 4 Max Kills in Single Turn 4 | 1 3 4 Gunslinging 1 | . 1 1 Exploded 1 | . 1 1 Melee . | . . . Uniques/NPCs Destroyed . | . . . Combat | -11 -10 -9 -------- Run | Scr Mat Mat Damage Taken 1853 | . 455 1398 Core 454 | . 52 402 Absorbed by Shields . | . . . Regen/Repaired (Parts) 61 | . 61 . Core Remaining (%) 89 | 100 79 . Volleys Fired 139 | 4 40 95 Largest 2 | 2 2 2 Hottest 121 | 80 90 121 Shots Fired 230 | 8 73 149 Gun 197 | 8 46 143 Cannon 17 | . 13 4 Launcher 16 | . 14 2 Special . | . . . Kinetic 105 | . . 105 Thermal 87 | 8 45 34 Explosive 16 | . 14 2 Electromagnetic 22 | . 14 8 Robot Hit Streak 39 | 6 15 39 Robot Miss Streak 3 | . 1 3 Penetration Max . | . . . Secondary Targets 4 | . 2 2 Max Gunslinging Chain 1 | . 1 1 Shots Hit Robots 184 | 6 56 122 Core Hits 97 | 4 33 60 Critical Kills 1 | . . 1 Critical Parts Destroyed . | . . . Critical Strikes 3 | . . 3 Burn 2 | . . 2 Destroy 1 | . . 1 Melee Attacks . | . . . Impact . | . . . Slashing . | . . . Piercing . | . . . Sneak Attacks . | . . . Combat Hostiles . | . . . Follow-up Attacks . | . . . Damage Inflicted 3230 | 68 1598 1564 Guns 1708 | 68 423 1217 Cannons 305 | . 210 95 Explosions 1195 | . 957 238 Melee . | . . . Ramming 22 | . 8 14 Kinetic 812 | . . 812 Thermal 1055 | 68 629 358 Explosive 951 | . 713 238 Electromagnetic 390 | . 248 142 Impact . | . . . Slashing . | . . . Piercing . | . . . Highest Corruption 3 | . . 3 Average Corruption 3 | . . 3 Corruption Purged . | . . . Corruption Blocked . | . . . Effects 17 | . . 17 Message Errors 4 | . . 4 Matter Fused 6 | . . 6 Heat Flow Errors 1 | . . 1 Energy Discharges 4 | . . 4 Misfires 1 | . . 1 Weapon Failures 1 | . . 1 Overload Shots . | . . . Overflow Damage 79 | . 58 21 Projectiles 21 | . . 21 Explosions 58 | . 58 . Melee . | . . . Knockbacks . | . . . Impact . | . . . Kinetic . | . . . Secondary . | . . . Self-Inflicted Damage 147 | . 127 20 Shots 4 | . 3 1 Rammed 4 | . 3 1 Targets Rammed 7 | . 3 4 Kicked 3 | . . 3 Crushed . | . . . Highest Temperature 303 | 36 170 303 Average Temperature 74 | 20 73 81 Received Heat Transfer 873 | . 246 627 Siege Activations . | . . . Robots Corrupted . | . . . Combat Hostiles . | . . . Parts Fried . | . . . Impact Corruptions . | . . . Robots Melted 1 | . . 1 Combat Hostiles 1 | . . 1 Parts Melted 5 | . . 5 Heat Transferred 2330 | 150 1144 1036 Parts Sabotaged . | . . . Parts Stolen . | . . . Parts Stripped . | . . . Power Chain Reactions 1 | . 1 . Missiles Intercepted . | . . . Alert | -11 -10 -9 ------- Run | Scr Mat Mat Peak Influence 617 | 15 617 592 Initial 216 | . 8 216 Average 326 | 5 278 383 Maximum Alert Level 2 | . 2 2 Low Security (%) 21 | 100 47 . Level 1 40 | . 10 59 Level 2 38 | . 41 40 Level 3 . | . . . Level 4 . | . . . Level 5 . | . . . High Security . | . . . Max Security . | . . . Squads Dispatched 5 | . 3 2 Investigation 4 | . 3 1 Extermination . | . . . Reinforcement 1 | . . 1 Assault . | . . . Garrison . | . . . Intercept . | . . . Searches Triggered . | . . . Construction Impeded . | . . . Haulers Reinforced . | . . . Active Scanning Responses . | . . . Cargo Convoy Interrupts . | . . . Stealth | -11 -10 -9 --------- Run | Scr Mat Mat Distress Signals 4 | . . 4 Communications Jammed . | . . . Distress Signals . | . . . Times Spotted 46 | . 14 32 Peak Tracking Total 6 | . 3 6 Tactical Retreats 1 | . . 1 Traps | -11 -10 -9 ------- Run | Scr Mat Mat Traps Triggered 4 | . 1 3 Indirectly 1 | . 1 . Trap Hack Attempts . | . . . Triggered . | . . . Disarmed . | . . . Reprogrammed . | . . . Reused . | . . . Traps Extracted . | . . . Installed . | . . . Triggered . | . . . Machines | -11 -10 -9 ---------- Run | Scr Mat Mat Machines Disabled 13 | . 13 . Max in Single Turn 5 | . 5 . Machines Sabotaged . | . . . Garrisons Compromised . | . . . Overloaded Fab Kills . | . . . Hacking | -11 -10 -9 --------- Run | Scr Mat Mat Machines Accessed 9 | . 5 4 Terminals 6 | . 4 2 Fabricators . | . . . Repair Stations 1 | . 1 . Recycling Units 2 | . . 2 Scanalyzers . | . . . Garrison Access . | . . . Total Hacks 29 | . 18 11 Successful 19 | . 13 6 Failed 10 | . 5 5 Catastrophic . | . . . Database Lockouts . | . . . Manual . | . . . Terminals 18 | . 13 5 Fabricators . | . . . Repair Stations 5 | . 5 . Recycling Units 6 | . . 6 Scanalyzers . | . . . Garrison Access . | . . . Terminal Hacks 10 | . 9 1 Prototype ID Bank 1 | . 1 . Branch Access Points 2 | . 1 1 Emergency Access Points 1 | . 1 . Unreport Threat 1 | . 1 . Locate Traps 3 | . 3 . Transport Status 1 | . 1 . Zone Layout 1 | . 1 . Fabricator Hacks . | . . . Repair Station Hacks 4 | . 4 . Scan Component 2 | . 2 . Repair 2 | . 2 . Recycling Unit Hacks 5 | . . 5 Report Inventory 4 | . . 4 Retrieve Components 1 | . . 1 Scanalyzer . | . . . Garrison Access Hacks . | . . . Unauthorized Hacks . | . . . Terminals . | . . . Fabricators . | . . . Repair Stations . | . . . Recycling Units . | . . . Scanalyzers . | . . . Garrison Access . | . . . Data Cores Recovered . | . . . Used . | . . . Hacking Detections 7 | . 4 3 Full Trace Events 3 | . 2 1 Feedback Events . | . . . Feedback Blocked . | . . . Robot Schematics Acquired . | . . . Robots Built . | . . . Authchips . | . . . Time . | . . . Total Robot Build Rating . | . . . Part Schematics Acquired . | . . . Parts Built . | . . . Authchips . | . . . Time . | . . . Total Part Build Rating . | . . . Parts Repaired 2 | . 2 . Time 52 | . 52 . Parts Recycled . | . . . Recycled Matter . | . . . Retrieved Matter . | . . . Retrieved Components 4 | . . 4 Parts Scanalyzed . | . . . Part Schematics Acquired . | . . . Parts Damaged . | . . . Bothacking | -11 -10 -9 ------------ Run | Scr Mat Mat Used RIF Installer . | . . . Robots Hacked . | . . . Non-combat . | . . . Combat . | . . . Robot Hacks Applied . | . . . Relay Couplers Released . | . . . Fabnet Peak Effective % . | . . . Robots Rewired . | . . . Allies Hacked . | . . . Hacks Repelled . | . . . Allies | -11 -10 -9 -------- Run | Scr Mat Mat Total Allies . | . . . Largest Group . | . . . Highest-Rated Group . | . . . Highest-Rated Ally . | . . . Total Orders . | . . . Ally Attacks . | . . . Total Damage . | . . . Kills . | . . . Allies Corrupted . | . . . Allies Melted . | . . . Intel | -11 -10 -9 ------- Run | Scr Mat Mat Robot Analysis Total . | . . . Derelict Logs Recovered . | . . . Drone Launches . | . . . Drone Recoveries . | . . . Exploration | -11 -10 -9 ------------- Run | Scr Mat Mat Turns Passed 1340 | 78 447 815 Spaces Moved 819 | 52 288 479 Core 34 | 22 . 12 Treads . | . . . Legs 338 | 30 105 203 Wheels 76 | . . 76 Hover 371 | . 183 188 Flight . | . . . Fastest Speed 50 | 50 56 56 Average Speed 93 | 90 79 102 Slowest Speed 150 | 120 130 150 Overloaded Moves . | . . . Propulsion Burnouts . | . . . Robots Hopped . | . . . Cave-ins Triggered . | . . . Exploration Rate (%) 34 | 4 63 35 Regions Visited 2 Branch Regions . Pre-discovered Areas . | . . . Known Exits Taken . | . . . Unknown Exits Taken 2 | 1 1 . Scrap Searched . | . . . Spaces Dug . | . . . Terrain Destroyed 152 | . 143 9 Melee . | . . . Projectile . | . . . AOE 152 | . 143 9 Terrain Rammed . | . . . Walls Destroyed . | . . . Machines Disabled . | . . . Actions | -11 -10 -9 --------- Run | Scr Mat Mat Total 1182 | 74 435 673 Wait 85 | . 59 26 Move 817 | 51 287 479 Hop . | . . . Pick Up 44 | 12 14 18 Fast Attach 13 | 2 3 8 Attach 23 | 5 3 15 Detach 1 | . . 1 Swap 22 | . 9 13 Drop 31 | . 17 14 Fire 139 | 4 40 95 Melee . | . . . Ram 4 | . 3 1 Kick 3 | . . 3 Crush . | . . . Escape Stasis . | . . . Rewire . | . . . Trap . | . . . Miscellaneous . | . . . Route ------- -11/Scrapyard -10/Materials (discovered 2 exits: *Mat / *Min) -9/Materials (discovered 3 exits: *Min / *Sto x2) History --------- Turn | Location | Event 10 | -11/Scrapyard | Discovered new exit (range 14) 79 | -11/Scrapyard | Entered Materials 99 | -10/Materials | Identified exit to Mines 468 | -10/Materials | Repaired Grenade Launcher 496 | -10/Materials | Repaired Hover Unit 499 | -10/Materials | Discovered new exit (range 12) 526 | -10/Materials | Entered another Materials area 526 | -9/Materials | Evolved 2 slots: Utility x2 526 | -9/Materials | Discovered new exit (range 15) 563 | -9/Materials | Build established: Scavenger-Mutant 729 | -9/Materials | Discovered new exit (range 12) 807 | -9/Materials | Lost 6 parts (1p2n3u) 898 | -9/Materials | Core integrity fell below 50% 934 | -9/Materials | Lost 5 parts (1p2n1u1w) 937 | -9/Materials | Build established: Mutant 938 | -9/Materials | Core integrity fell below 20% 1242 | -9/Materials | Identified exit to Mines 1242 | -9/Materials | Identified exit to Storage 1270 | -9/Materials | Build established: Scavenger-Mutant 1341 | -9/Materials | Destroyed by Y-45 Defender with Beam Rifle Last Messages --------------- 01287_ Critical hit (Burn: +37). 01288_ R-06 Scavenger collects Heat Sink. 01291_ A-02 Transporter destroyed. 01292_ R-06 Scavenger collects Heat Sink. 01296_ R-06 Scavenger suffers critical hit (Burn). 01296_ Sensor Array destroyed. 01296_ R-06 Scavenger collects Transport Network Coupler. 01299_ System corrupted: Matter fused (-6). 01299_ Critical hit (Burn: +37). 01300_ Ion Engine destroyed. 01304_ Critical hit (Burn: +37). 01304_ Acquired 34 matter. 01310_ A-02 Transporter destroyed. 01313_ K-01 Serf collects debris. 01314_ Acquired Cld. Ion Engine. 01319_ K-01 Serf collects debris. 01325_ K-01 Serf destroyed. 01333_ Lgt. Assault Rifle destroyed. 01336_ Hvy. Assault Rifle destroyed. 01337_ Y-45 Defender destroyed. Map ----- +----------------------------------------------------+ | ????????????????????????????????????# #??? | | ????????????????????????????????????# [ ##?? | | ????????????????????????????????????# # ] #?? | | ????????????????????????????????????# * = #?? | | ?????????????????????????##########?# [= ###?? | | ?????????????###########?# ! #?# !##### | | ############## #?# ! #?# ## | | # # """ #?# [[ ### # # | | # # """"" #?# [[ # # """ # ! | | # # """"" #?# + + "" ## | | + + """"" #?# """ # # " ## "Y | | # # """ #?# """ # # ## "" | | ] # # #?# * """ # ####+####### | | # # #?# ] # | | # #################+#### | | ########## #??# # #??# | | ?????????# #??# """ """ # #??#######+### ## | | ?????????# #??# """ """ # #?????# % # ## | | ?????????# #??# """ """ # ####### + + | | ?????????# #??# # +*| # # | | ????????## ##?#######+####+# ####### # # | | ????????# ####### ## # #?????# % # # | | ????????# =* * "" !## # #?????# #= # | | ????????# >=]Y%!=Y T # #?????##+##+## # | | ????????# !]*]a%[ #### ########%% ## | | ????????# % *####### @ k r% %%% #? | | ???????####/#####???## ########+############+##? | | ???????# #????# #??????# [ #??????? ?? | | ???????# #????# #??????# #????????"? | | ???????# !== #????# #??????# ![ !#????????? | | ???????# =%[ ###### #??#####]![ #?????????? | | ???????# === # # #??# +]![ #?????????? | | ???????# # # #??# ### #?????????? | | ???????# # # ####+##########?????????? | | ???????# # # # #????????????????? | | ???????# # # # """ #????????????????? | | ?########+####### + + """ #????????????????? | | #?????# # # """ !#????????????????? | | ######### #?????# # # #????????????????? | | # #?????# # + #????????????????? | | T # #?????#+#####+#########????????????????? | | # #?????# #??? ????????????????????????? | | # #?????# #?? ""????????????????????????? | | ###+##### #?????# #?? """???????????????????????? | | ??# #?????# #?# """???????????????????????? | | ######+## #?????# #?# ???????????????????????? | | # * ## ##????# #?# ??????????????????????????? | | # =! # ###### #?# ??????????????????????????? | | # + [% #?# ??????????????????????????? | | # """ # ###### #?# ??????????????????????????? | +----------------------------------------------------+ Best States ------------- Heat Dissipation 48 Energy Generation 10 Energy Capacity 250 Matter Stores 300 Matter Capacity 300 Sight Range 16 Robot Scan Range 14 Terrain Scan Density 10 ECM Strength 1 Armor Coverage 150 Resistance: KI 20 Resistance: TH 20 Resistance: EX 20 Resistance: EM 20 Resistance: I 20 Resistance: S 20 Resistance: P 20 Evasion (%) 55 Offensive Hacking 10 Item Schematics ----------------- None Robot Schematics ------------------ None Fabricated ------------ Nothing Alien Tech Used ----------------- None Achievements -------------- None Challenges ------------ None Game ------ Seed NullBattleSink Manual? 0 Play Time 00:30:48 Cumulative 65.5 hours Start 2022.07.22 @ 14:30:57 End 2022.07.22 @ 14:59:50 Sessions 1 Manual Loads 0 Difficulty Adventurer Special Mode None Game No. 68 Rogue 0 Adventurer 68 Explorer 0 Win Type - Total 0 Types 0/0/0/0/0/0/0/0/0 Lore% 35 Gallery% 46 Achievement% 33 Wizard Run 0 Options --------- ASCII 0 Keyboard 0 Movement Mouse Keybinds 0 Fullscreen 1 Font 24/Smallcaps Map View 113x50 Tactical HUD 1 Map Filters NONE Filters NONE Steam 1 RUN: b6ca2bc4-bef4-46ee-86f7-f11af493bb35